bitfinex-derivatives/quotes_ETHF0:USTF0_20240829
["timestamp","ask_amount","ask_price","bid_price","bid_amount"]
[1724927507707,0.39855998,2546.0,2545.9,1.20459]
[1724927507708,0.00588998,2546.0,2545.9,1.20459]
[1724927507917,0.39855998,2546.0,2545.9,0.8119]
[1724927508511,0.39855998,2546.0,2545.9,1.20459]
[1724927508712,0.00588998,2546.0,2545.9,1.20459]
[1724927509313,0.00588998,2546.0,2545.9,5.13259]
[1724927510515,0.39855998,2546.0,2545.9,5.13259]
[1724927510718,0.39271,2545.8,2545.7,0.39271]
[1724927510914,0.39271,2545.8,2545.7,0.39272]
[1724927511424,0.39271,2545.8,2545.7,4.32072]
[1724927511618,0.39271,2545.8,2545.6,6.9921]
[1724927511619,0.39272,2545.7,2545.6,4.17702]
[1724927511820,0.39272,2545.7,2545.6,0.3943]
[1724927512024,4.89328733,2545.8,2545.7,0.39271]
[1724927512226,4.89328733,2545.8,2545.6,0.78702]
[1724927512720,0.39272,2545.7,2545.6,0.3943]
[1724927515227,4.89327733,2545.8,2545.7,0.39272]
[1724927515831,4.50057733,2545.8,2545.7,0.39272]
[1724927516026,4.50057733,2545.8,2545.7,0.77792]
[1724927516331,4.50057733,2545.8,2545.7,1.18912]
[1724927517423,0.00588998,2546.0,2545.7,0.7964]
[1724927517625,0.00588998,2546.0,2545.7,0.77791]
[1724927517823,0.3927,2545.9,2545.7,0.3852]
[1724927518015,0.3927,2545.9,2545.7,0.7779]
[1724927518221,0.3927,2545.9,2545.8,0.3927]
[1724927520023,0.3927,2545.9,2545.7,0.77791]
[1724927520229,0.00588998,2546.0,2545.8,0.3927]
[1724927520230,0.39856998,2546.0,2545.8,0.3927]
[1724927520426,0.00588998,2546.0,2545.9,0.39269]
[1724927520621,0.00588998,2546.0,2545.8,0.80409]
[1724927520925,4.90630977,2546.0,2545.8,0.39269]
[1724927521629,0.39269,2545.9,2545.7,0.77791]
[1724927522131,0.39269,2545.9,2545.7,2.18791]
[1724927522329,0.3927,2545.8,2545.7,1.7952]
[1724927522533,0.39272,2545.7,2545.6,0.3943]
[1724927523421,5.74151956,2545.8,2545.6,2.19703]
[1724927523633,5.36791956,2545.8,2545.6,2.19703]
[1724927524021,0.39272,2545.7,2545.6,1.8043]
[1724927524832,0.39272,2545.7,2545.6,0.3943]
[1724927525036,0.39275,2545.5,2545.4,3.2078]
[1724927525538,4.6576661,2545.5,2545.4,3.2078]
[1724927525928,4.2649161,2545.5,2545.4,8.93936]
[1724927526225,0.00588998,2546.0,2545.4,9.3242]
[1724927526430,0.39856998,2546.0,2545.8,0.39269]
[1724927526738,0.00588998,2546.0,2545.9,0.76829]
[1724927527038,0.00588998,2546.0,2545.9,2.17829]
[1724927528035,0.00588998,2546.0,2545.9,0.76829]
[1724927534033,0.00588998,2546.0,2545.9,4.69629]
[1724927534227,0.00588998,2546.0,2545.9,11.67801]
[1724927535031,0.00588998,2546.0,2545.9,12.65973]
[1724927535237,0.4059,2546.6,2546.5,0.39259]
[1724927535833,4.51819922,2546.6,2546.5,0.39259]
[1724927536234,4.91077922,2546.6,2546.5,0.39259]
[1724927537939,0.39259,2546.5,2546.4,1.1682]
[1724927538141,0.77839,2546.5,2546.4,0.3991]
[1724927538741,0.77839,2546.5,2546.4,0.79171]
[1724927539237,0.3858,2546.5,2546.4,0.79171]
[1724927539742,0.39261,2546.4,2546.3,0.00588998]
[1724927540541,9.51796828,2546.4,2546.3,0.00588998]
[1724927542245,8.53643828,2546.4,2546.3,0.00588998]
[1724927542742,9.51796828,2546.4,2546.3,0.00588998]
[1724927548537,12.72576828,2546.4,2546.3,0.00588998]
[1724927549146,7.42442828,2546.4,2546.3,3.39588998]
[1724927549342,3.46597004,2546.5,2546.3,3.39588998]
[1724927549343,0.3926,2546.5,2546.3,3.39588998]
[1724927549645,4.400978,2546.4,2546.3,0.00588998]
[1724927549838,4.785078,2546.4,2546.3,40.80588998]
[1724927550147,9.517388,2546.4,2546.3,0.00588998]
[1724927550336,9.517388,2546.4,2545.8,3.2078]
[1724927550337,0.98157,2546.3,2545.9,0.397]
[1724927550536,1.37446,2545.8,2545.7,3.332]
[1724927550741,0.98172,2545.9,2545.3,0.397]
[1724927550939,0.39274,2545.6,2545.3,0.397]
[1724927551445,4.71002916,2545.5,2545.3,0.397]
[1724927551645,4.71002916,2545.5,2545.4,0.39276]
[1724927551849,0.7671,2545.7,2545.3,0.78977]
[1724927551850,4.51504354,2545.6,2545.3,0.78977]
[1724927552039,0.396,2545.6,2545.3,0.78977]
[1724927552545,4.62671236,2545.6,2545.3,0.397]
[1724927552751,0.39275,2545.5,2545.3,0.397]
[1724927552943,4.62671236,2545.6,2545.3,0.397]
[1724927553138,4.41497999,2545.4,2545.2,0.00588998]
[1724927553346,0.39278,2545.4,2545.2,0.00588998]
[1724927553743,4.41497999,2545.3,2545.2,0.00588998]
[1724927554152,4.80775999,2545.3,2545.2,0.00588998]
[1724927554447,0.39278,2545.3,2545.2,0.00588998]
[1724927554747,4.60752296,2545.3,2545.2,0.00588998]
[1724927555049,4.21474296,2545.3,2545.2,0.00588998]
[1724927555354,4.92651004,2545.4,2545.2,0.00588998]
[1724927555852,0.00588998,2545.5,2545.2,0.00588998]
[1724927556050,4.42531425,2545.3,2545.2,0.00588998]
[1724927556350,3.78278,2545.3,2544.5,3.2078]
[1724927556651,3.78278,2545.3,2544.2,6.5408]
[1724927556652,3.39,2544.8,2544.2,6.5408]
[1724927556859,1.2005,2544.7,2544.2,6.5408]
[1724927557151,5.66375995,2544.7,2544.1,0.4075]
[1724927557363,3.39,2544.6,2544.1,0.00588998]
[1724927557540,0.39294,2544.3,2544.1,0.00588998]
[1724927557854,4.08363661,2544.2,2544.1,0.00588998]
[1724927558051,4.47658661,2544.2,2544.1,0.00588998]
[1724927558444,4.08363661,2544.2,2544.1,0.00588998]
[1724927560452,4.47658661,2544.2,2544.1,0.00588998]
[1724927561657,4.08363661,2544.2,2544.1,0.00588998]
[1724927561851,3.70243661,2544.2,2544.1,0.00588998]
[1724927562055,0.39291,2544.5,2544.1,0.39884998]
[1724927562254,3.5867,2544.6,2544.3,0.39293]
[1724927562448,4.5085881,2544.4,2544.2,0.39294]
[1724927562654,4.5085881,2544.4,2544.3,0.39293]
[1724927562959,3.2078,2544.6,2544.3,0.39292]
[1724927563157,3.2078,2544.6,2544.4,0.3744]
[1724927563453,4.1510049,2544.5,2544.4,0.76732]
[1724927563662,4.1510049,2544.5,2544.4,0.3744]
[1724927565657,0.3789,2544.8,2544.4,4.69772]
[1724927565955,4.52362129,2544.7,2544.5,0.3929]
[1724927567768,4.37199,2545.3,2544.5,3.9296]
[1724927568063,0.39283,2545.0,2544.7,0.39287]
[1724927568273,4.09650197,2544.9,2544.7,0.39287]
[1724927568461,0.39283,2545.0,2544.6,0.39288]
[1724927568766,4.09650197,2544.9,2544.7,0.39286]
[1724927569158,4.52021049,2545.0,2544.7,0.39286]
[1724927569354,0.39282,2545.1,2544.7,0.39286]
[1724927569864,4.91304049,2545.0,2544.7,0.39286]
[1724927570168,0.39283,2545.0,2544.7,0.39286]
[1724927570561,4.30320105,2544.9,2544.7,0.39286]
[1724927571162,0.39286,2544.8,2544.5,0.39289]
[1724927571559,4.69605105,2544.9,2544.6,0.39288]
[1724927571762,4.30320105,2544.9,2544.6,0.39288]
[1724927571973,4.69605105,2544.9,2544.5,0.39289]
[1724927572158,4.69605105,2544.9,2544.6,0.39288]
[1724927575271,4.30320105,2544.9,2544.7,0.39286]
[1724927575670,4.30320105,2544.9,2544.8,0.39285]
[1724927578862,4.30320105,2544.9,2544.7,0.39286]
[1724927579064,0.39286,2544.8,2544.6,0.39287]
[1724927579973,0.75446,2544.8,2544.6,0.39287]
[1724927580865,0.3616,2544.8,2544.6,0.39287]
[1724927581671,0.75446,2544.8,2544.6,0.39287]
[1724927581873,4.69604105,2544.9,2544.7,0.39286]
[1724927582059,4.69604105,2544.9,2544.6,0.39288]
[1724927582265,4.30320105,2544.9,2544.5,0.7838]
[1724927582466,0.39288,2544.7,2544.5,0.3909]
[1724927582872,0.39288,2544.7,2544.5,0.7838]
[1724927583167,0.3545,2544.7,2544.5,0.7838]
[1724927583671,0.74738,2544.7,2544.5,0.7838]
[1724927583965,0.39289,2544.6,2544.5,0.3909]
[1724927584167,0.39291,2544.5,2544.3,44.991]
[1724927584371,0.39292,2544.4,2544.3,4.5794]
[1724927584673,4.69319258,2544.4,2544.3,4.191]
[1724927585556,4.69319258,2544.4,2544.1,7.50208998]
[1724927585557,0.39295,2544.2,2544.1,7.50208998]
[1724927585770,0.39295,2544.2,2544.1,3.33488998]
[1724927586072,5.47008663,2544.2,2544.1,0.00588998]
[1724927586371,4.86750663,2544.2,2544.1,0.00588998]
[1724927587469,0.39308,2543.4,2543.1,3.60091]
[1724927587670,0.39308,2543.4,2543.0,0.39312]
[1724927587968,4.37258,2543.7,2543.0,0.39312]
[1724927588271,0.39308,2543.4,2543.0,0.39312]
[1724927588472,0.00588998,2543.5,2543.0,0.39312]
[1724927588869,4.70902515,2543.4,2543.0,0.39312]
[1724927590471,4.31595515,2543.4,2543.1,0.39312]
[1724927590673,4.31595515,2543.4,2543.3,0.39309]
[1724927591373,4.31595515,2543.4,2543.2,0.39309]
[1724927591572,0.39309,2543.3,2543.0,0.39313]
[1724927592466,4.70903515,2543.4,2543.1,0.39311]
[1724927593376,4.70903515,2543.4,2542.9,3.60218998]
[1724927593571,4.70903515,2543.4,2543.1,0.39311]
[1724927594470,4.70903515,2543.4,2543.2,0.3931]
[1724927594665,4.70903515,2543.4,2542.9,3.60218998]
[1724927594666,4.31595515,2543.4,2543.3,0.39309]
[1724927594975,0.00588998,2543.5,2543.4,0.39307]
[1724927595176,0.00588998,2543.5,2543.4,4.32507]
[1724927595478,3.2078,2544.3,2543.4,13.322]
[1724927595670,0.39298,2544.0,2543.8,3.39]
[1724927595867,0.39297,2544.1,2543.9,0.39299]
[1724927596176,4.52071151,2544.3,2544.0,41.19297]
[1724927596376,0.39296,2544.2,2544.0,41.19297]
[1724927596673,0.00588998,2544.4,2544.2,0.39295]
[1724927596983,0.00588998,2544.4,2544.3,3.71893]
[1724927597281,0.00588998,2544.4,2544.3,8.03023]
[1724927597583,0.00588998,2544.4,2544.3,14.03023]
[1724927598576,0.00588998,2544.4,2544.3,10.70423]
[1724927598777,0.00588998,2544.4,2544.3,14.03023]
[1724927599282,0.7419,2545.2,2544.4,0.9823]
[1724927599586,4.29768666,2545.1,2544.9,0.39283]
[1724927600873,4.69049666,2545.1,2544.7,0.39874998]
[1724927602180,4.69049666,2545.1,2544.7,0.00588998]
[1724927602181,0.39285,2544.8,2544.7,0.00588998]
[1724927602477,4.83517683,2544.8,2544.7,0.00588998]
[1724927602675,8.37192683,2544.8,2544.7,0.00588998]
[1724927603078,4.44232683,2544.8,2544.7,0.00588998]
[1724927603278,8.37192683,2544.8,2544.7,0.00588998]
[1724927603484,0.39285,2544.9,2544.7,0.00588998]
[1724927603677,4.43031542,2544.8,2544.7,0.00588998]
[1724927604185,0.39284,2544.9,2544.7,0.00588998]
[1724927604482,4.23521685,2544.8,2544.7,0.00588998]
[1724927604672,4.23521685,2544.8,2544.7,0.39875998]
[1724927604867,4.23521685,2544.9,2544.7,0.00588998]
[1724927605078,3.60062,2545.0,2544.7,0.00588998]
[1724927605380,4.45045515,2544.9,2544.7,0.00588998]
[1724927605678,1.37499,2544.8,2544.7,0.00588998]
[1724927605887,5.30459,2544.8,2544.7,0.00588998]
[1724927606069,15.46616353,2544.8,2544.7,0.00588998]
[1724927607872,15.46616353,2544.8,2544.0,44.991]
[1724927607873,0.98223,2544.6,2544.0,44.991]
[1724927608077,0.39293,2544.4,2543.9,0.39299]
[1724927608276,0.39293,2544.3,2543.9,0.39299]
[1724927608483,4.79788683,2544.3,2543.9,0.39299]
[1724927608983,4.40495683,2544.3,2543.9,0.39299]
[1724927609377,4.855628,2544.4,2544.0,0.39297]
[1724927609678,0.39293,2544.4,2544.0,0.39297]
[1724927609895,4.462708,2544.3,2544.0,0.39297]
[1724927610078,4.462708,2544.3,2543.8,47.53088998]
[1724927610383,4.39203956,2544.4,2544.2,0.39295]
[1724927610778,3.5956,2544.5,2544.2,0.39295]
[1724927610978,4.39203956,2544.4,2544.2,0.39295]
[1724927612991,4.39203956,2544.4,2544.1,0.39295]
[1724927614582,4.78495956,2544.4,2544.1,0.39295]
[1724927614785,4.39203956,2544.4,2543.9,3.2078]
[1724927614978,0.39294,2544.3,2543.9,3.60078]
[1724927615384,4.24683023,2544.2,2543.9,3.60078]
[1724927617182,4.63978023,2544.2,2543.9,3.60078]
[1724927617380,0.3906,2544.1,2543.9,3.60078]
[1724927617782,4.21520338,2544.0,2543.9,3.60078]
[1724927619188,4.195,2544.8,2544.0,0.98243]
[1724927619383,0.39286,2544.8,2544.6,0.39288]
[1724927619594,4.37953756,2544.7,2544.6,0.39288]
[1724927619991,0.39287,2544.7,2544.5,0.39289]
[1724927620197,4.18994,2544.9,2544.4,3.60071]
[1724927620396,0.75528,2544.7,2544.5,0.3929]
[1724927621998,0.3624,2544.7,2544.4,0.39291]
[1724927623897,0.3624,2544.7,2544.5,0.3929]
[1724927624201,4.10833407,2544.8,2544.6,0.39289]
[1724927624797,4.50119407,2544.8,2544.5,0.39289]
[1724927625498,4.50119407,2544.8,2544.2,6.6078]
[1724927625697,0.356,2544.7,2544.5,0.3929]
[1724927626407,0.356,2544.7,2544.6,0.39289]
[1724927627203,5.14473233,2544.7,2544.4,0.39291]
[1724927627505,5.14473233,2544.7,2544.5,0.3929]
[1724927627898,4.75185233,2544.7,2544.5,0.3929]
[1724927629805,5.14472233,2544.7,2544.4,0.39291]
[1724927630003,4.75185233,2544.7,2544.5,0.3929]
[1724927630804,5.14472233,2544.7,2544.4,0.39291]
[1724927631311,4.75185233,2544.7,2544.5,0.3929]
[1724927631998,4.75185233,2544.7,2544.6,0.39289]
[1724927632203,4.39585233,2544.7,2544.6,0.39289]
[1724927632620,7.36533,2545.0,2544.7,0.39287]
[1724927632621,4.49526542,2544.9,2544.7,0.39287]
[1724927632923,7.36533,2545.0,2544.7,0.39287]
[1724927633112,4.30878366,2544.9,2544.7,0.39287]
[1724927633615,4.70162366,2544.9,2544.7,0.39287]
[1724927633823,4.30878366,2544.9,2544.7,0.39287]
[1724927637715,4.70162366,2544.9,2544.7,0.39287]
[1724927637921,4.70162366,2544.9,2544.6,0.39288]
[1724927638221,0.39287,2544.7,2544.4,0.3929]
[1724927638619,4.45276242,2544.6,2544.4,0.3929]
[1724927639927,4.45276242,2544.6,2544.5,0.3929]
[1724927640229,4.84565242,2544.6,2544.3,0.39293]
[1724927640432,0.3929,2544.5,2544.2,4.58394]
[1724927640624,0.7642,2544.5,2544.2,4.58394]
[1724927641223,0.7642,2544.5,2544.2,4.58395]
[1724927641224,4.31904816,2544.4,2544.2,4.58395]
[1724927641629,4.71196816,2544.4,2544.2,4.191]
[1724927642335,0.39293,2544.3,2544.2,4.191]
[1724927642628,0.77793,2544.3,2544.2,4.191]
[1724927642829,9.19922584,2544.3,2544.2,4.191]
[1724927643137,9.19922584,2544.3,2544.0,3.71498]
[1724927643318,5.26882584,2544.3,2544.0,3.71498]
[1724927643522,5.26882584,2544.3,2544.0,3.322]
[1724927643833,4.87589584,2544.3,2544.0,3.322]
[1724927644133,0.3713,2544.5,2544.4,0.39292]
[1724927644323,4.58785,2544.9,2544.6,0.39288]
[1724927644519,7.6984,2545.0,2544.7,0.39286]
[1724927644520,4.69123,2545.0,2544.7,0.39286]
[1724927644729,4.69123,2545.0,2544.6,0.39288]
[1724927644730,4.23449693,2544.8,2544.6,0.39288]
[1724927644925,4.23449693,2544.9,2544.7,0.39287]
[1724927645130,4.69123,2545.0,2544.7,0.39287]
[1724927645430,4.36690229,2544.9,2544.5,0.3689]
[1724927645924,4.75974229,2544.9,2544.6,0.39288]
[1724927646124,4.75974229,2544.9,2544.5,0.76179]
[1724927646634,4.36690229,2544.9,2544.7,0.39287]
[1724927649534,4.38785998,2545.3,2545.1,0.39281]
[1724927649535,0.00588998,2545.3,2545.1,0.39281]
[1724927649734,0.00588998,2545.3,2545.0,0.39281]
[1724927649930,0.3928,2545.2,2545.0,0.39281]
[1724927650122,0.3928,2545.2,2544.9,0.39283]
[1724927650327,0.39282,2545.0,2544.8,3.71184]
[1724927650637,7.4822051,2545.1,2544.6,0.39288]
[1724927650829,5.3849551,2544.9,2544.6,0.39288]
[1724927651027,0.7177,2544.9,2544.6,0.39288]
[1724927651336,0.7177,2544.9,2544.7,0.39287]
[1724927651635,0.7177,2544.9,2544.8,0.39285]
[1724927653139,3.2078,2545.1,2544.9,0.39282]
[1724927653436,3.2078,2545.1,2545.0,0.3556]
[1724927653637,3.7928,2545.2,2545.0,0.3556]
[1724927654030,4.48829285,2545.1,2545.0,0.3556]
[1724927654230,0.37208998,2545.3,2545.1,0.39279]
[1724927654528,0.37208998,2545.3,2545.1,0.7539]
[1724927654937,0.37208998,2545.3,2545.2,0.39279]
[1724927655337,0.37208998,2545.3,2545.1,0.7539]
[1724927655732,0.76486998,2545.3,2545.0,41.54841]
[1724927655935,4.13753858,2545.2,2545.0,41.54841]
[1724927656340,0.3772,2545.1,2545.0,0.39281]
[1724927656633,0.3772,2545.1,2544.8,3.2078]
[1724927656634,0.3772,2545.1,2544.8,3.5794]
[1724927657135,0.3772,2545.1,2544.9,0.39284]
[1724927657539,0.3772,2545.1,2545.0,0.39282]
[1724927658036,0.3772,2545.1,2544.9,0.39283]
[1724927660534,0.77001,2545.1,2544.9,0.39283]
[1724927661138,0.3772,2545.1,2545.0,0.39282]
[1724927661347,0.3772,2545.1,2544.9,0.39283]
[1724927661639,0.77001,2545.1,2544.9,0.39283]
[1724927662537,0.77001,2545.1,2544.8,0.76445]
[1724927662735,0.77001,2545.1,2544.9,0.39284]
[1724927663438,0.3772,2545.1,2544.9,0.39284]
[1724927663841,0.3772,2545.1,2545.0,0.39282]
[1724927664438,4.13753858,2545.2,2545.0,0.39282]
[1724927664642,0.3519,2545.1,2544.8,0.3716]
[1724927664838,0.3519,2545.1,2545.0,0.39282]
[1724927667946,0.3519,2545.1,2544.9,0.39283]
[1724927668449,0.3519,2545.1,2545.0,0.39282]
[1724927668651,0.3519,2545.1,2544.9,0.39282]
[1724927668850,0.3519,2545.1,2545.0,0.39282]
[1724927669146,0.3519,2545.1,2544.9,0.39283]
[1724927669147,0.74471,2545.1,2544.9,0.39283]
[1724927669943,0.74471,2545.1,2544.8,0.76445]
[1724927670354,4.38743944,2545.0,2544.8,0.76445]
[1724927670752,0.3658,2544.9,2544.8,0.76445]
[1724927674458,4.38743944,2545.0,2544.9,0.39284]
[1724927674762,0.39867998,2545.3,2544.8,5.28333]
[1724927674954,0.39279,2545.2,2545.1,0.3928]
[1724927676049,0.39867998,2545.3,2545.0,0.3714]
[1724927676253,0.39867998,2545.3,2545.1,0.3928]
[1724927676451,0.39867998,2545.3,2545.2,0.39279]
[1724927677149,0.00588998,2545.3,2545.2,0.39279]
[1724927677348,0.00588998,2545.3,2545.2,4.32159]
[1724927677555,0.00588998,2545.3,2545.2,7.52939]
[1724927677857,0.00588998,2545.3,2545.2,8.27869]
[1724927678564,0.39866998,2545.3,2545.2,3.2078]
[1724927678760,0.00588998,2545.3,2545.2,3.60059]
[1724927679258,0.39279,2545.2,2545.0,0.39282]
[1724927679462,0.39279,2545.2,2544.9,41.1759]
[1724927679463,4.39723388,2545.3,2544.9,0.76873]
[1724927679660,5.1739639,2545.1,2544.9,0.76874]
[1724927679957,0.7728,2545.0,2544.9,0.76874]
[1724927680152,5.1641439,2545.0,2544.8,7.79164]
[1724927680351,5.5569639,2545.0,2544.8,7.79164]
[1724927680752,5.1641439,2545.0,2544.8,7.79164]
[1724927681664,5.1641439,2545.0,2544.8,3.60064]
[1724927682964,5.5569739,2545.0,2544.8,3.2078]
[1724927686471,5.5569739,2545.0,2544.8,3.60065]
[1724927686659,4.3913439,2545.0,2544.9,0.39284]
[1724927687163,4.3913439,2545.0,2544.9,0.77974]
[1724927687470,4.3913439,2545.0,2544.9,0.3869]
[1724927687660,4.3913439,2545.0,2544.8,3.60065]
[1724927687853,4.3913439,2545.0,2544.9,0.39284]
[1724927689964,0.39281,2545.1,2545.0,0.39282]
[1724927690261,4.89758514,2545.1,2545.0,0.39282]
[1724927690670,0.39281,2545.1,2545.0,0.39282]
[1724927691864,0.3928,2545.2,2545.0,0.39282]
[1724927692269,4.80847195,2545.2,2545.0,0.39282]
[1724927693162,4.41567195,2545.2,2545.1,0.39281]
[1724927693364,0.00588998,2545.3,2545.2,0.39279]
[1724927698771,0.39866998,2545.3,2545.1,0.3928]
[1724927699575,1.0896,2545.2,2545.1,0.3928]
[1724927703371,0.00588998,2545.3,2545.2,0.39279]
[1724927703969,0.00588998,2545.3,2545.2,4.32159]
[1724927704977,0.00588998,2545.3,2545.2,5.73159]
[1724927707373,0.00588998,2545.3,2545.2,7.69557]
[1724927707581,0.00192744,2545.3,2545.2,13.69557]
[1724927707777,0.39268,2546.0,2545.9,0.39269]
[1724927708179,4.15555247,2545.9,2545.8,0.39269]
[1724927708374,0.39269,2545.9,2545.8,0.39269]
[1724927708571,0.39268,2546.0,2545.8,0.39269]
[1724927708979,4.3983005,2546.0,2545.8,1.41]
[1724927709183,4.3983005,2546.0,2545.9,0.39269]
[1724927711080,4.3983005,2546.0,2545.9,0.78259]
[1724927712182,4.7909705,2546.0,2545.9,0.3899]
[1724927712389,4.3983005,2546.0,2545.9,0.39269]
[1724927713496,4.3983005,2546.0,2545.8,0.39269]
[1724927714387,4.3983005,2546.0,2545.9,0.39269]
[1724927714589,4.3983005,2546.0,2545.8,0.39269]
[1724927715787,0.39272,2545.7,2545.6,0.00588998]
[1724927715992,0.39271,2545.8,2545.6,0.39861998]
[1724927716181,0.3896,2546.1,2545.6,0.39861998]
[1724927716182,4.65351256,2545.7,2545.6,0.39861998]
[1724927716385,0.3605,2545.7,2545.6,0.00588998]
[1724927716588,0.75322,2545.7,2545.6,0.00588998]
[1724927716993,1.12702,2545.7,2545.6,0.00588998]
[1724927717195,0.7343,2545.7,2545.6,0.00588998]
[1724927717592,0.7343,2545.7,2545.6,0.39861998]
[1724927718196,0.7343,2545.7,2545.6,0.00588998]
[1724927718389,1.12702,2545.7,2545.6,0.00588998]
[1724927718797,5.46568263,2545.7,2545.6,0.00588998]
[1724927718998,10.37548263,2545.7,2545.6,0.00588998]
[1724927719392,11.78548263,2545.7,2545.6,0.00588998]
[1724927721395,9.00096263,2545.7,2545.6,0.00588998]
[1724927721589,5.07296263,2545.7,2545.6,0.39861998]
[1724927723102,4.33866263,2545.7,2545.6,4.32661998]
[1724927723297,0.3927,2545.9,2545.6,5.06210998]
[1724927723501,0.3927,2545.8,2545.6,1.13410998]
[1724927723795,3.2078,2546.0,2545.6,1.13410998]
[1724927723796,4.49260918,2545.9,2545.6,1.13410998]
[1724927724401,4.49260918,2545.9,2545.7,0.39271]
[1724927724402,4.49259918,2545.9,2545.7,0.39271]
[1724927724693,4.09990918,2545.9,2545.7,0.39271]
[1724927725300,4.09990918,2545.9,2545.6,1.13410998]
[1724927725601,0.3927,2545.8,2545.6,0.39861998]
[1724927726199,5.08978058,2545.7,2545.6,0.00588998]
[1724927726403,4.69706058,2545.7,2545.6,0.39861998]
[1724927726591,0.3725,2545.7,2545.6,0.39861998]
[1724927726900,4.69872517,2545.7,2545.6,0.39861998]
[1724927729600,4.32622517,2545.7,2545.6,0.39861998]
[1724927729903,0.39271,2545.8,2545.6,0.39861998]
[1724927735506,0.76939,2545.9,2545.7,0.39271]
[1724927736095,4.18824675,2545.8,2545.7,0.39271]
[1724927736700,0.00588998,2546.2,2545.7,8.1176]
[1724927736906,0.00588998,2546.2,2546.1,0.39265]
[1724927737902,0.00588998,2546.2,2546.1,4.31985]
[1724927739506,0.00588998,2546.2,2546.1,45.11985]
[1724927739902,0.00588998,2546.2,2546.1,51.11985]
[1724927740814,0.00588998,2546.2,2546.1,45.11985]
[1724927742902,0.00588998,2546.2,2546.1,44.7272]
[1724927743103,4.53716854,2546.2,2546.0,3.60047]
[1724927743613,4.53716854,2546.2,2546.0,5.01047]
[1724927744114,0.00588998,2546.2,2546.1,0.39265]
[1724927744515,0.00588998,2546.2,2546.1,4.31985]
[1724927745314,0.00588998,2546.2,2546.1,11.30149]
[1724927745507,0.00588998,2546.2,2546.1,5.30149]
[1724927745703,0.00588998,2546.2,2546.1,11.30149]
[1724927747007,3.13455,2546.9,2546.6,0.39258]
[1724927747008,0.39254,2546.9,2546.6,0.39258]
[1724927747208,0.39254,2546.9,2546.7,0.75875]
[1724927747410,0.39255,2546.8,2546.7,0.3662]
[1724927747609,0.39259,2546.5,2546.4,40.8]
[1724927747817,0.98153,2546.4,2545.9,4.191]
[1724927748113,1.41,2546.1,2545.6,3.21368998]
[1724927748304,0.39272,2545.7,2545.6,3.21368998]
[1724927748715,8.50632695,2545.7,2545.6,3.21368998]
[1724927748915,4.18560695,2545.7,2545.6,3.60641998]
[1724927749113,3.2078,2546.3,2545.6,8.55168998]
[1724927749317,3.2078,2546.3,2545.8,1.41]
[1724927749318,0.39267,2546.0,2545.8,1.41]
[1724927749520,0.39267,2546.0,2545.7,1.41]
[1724927749709,4.19936635,2545.9,2545.7,1.41]
[1724927749917,0.75796,2546.1,2545.8,1.41]
[1724927750220,0.7361,2546.2,2545.7,4.15261]
[1724927750221,0.39265,2546.2,2545.7,4.15261]
[1724927750418,4.59202635,2546.1,2545.7,4.15261]
[1724927751119,4.59202635,2546.1,2545.7,3.7599]
[1724927752019,4.19936635,2546.1,2545.7,4.15261]
[1724927752427,4.59202635,2546.1,2545.7,4.15261]
[1724927753619,4.19936635,2546.1,2545.9,3.39]
[1724927753923,0.3665,2546.2,2545.9,3.78268]
[1724927754119,4.53773345,2546.1,2545.9,40.8]
[1724927754322,0.39267,2546.0,2545.7,3.7599]
[1724927754715,0.39272,2545.7,2545.6,3.21368998]
[1724927755024,5.81884505,2545.7,2545.6,0.00588998]
[1724927755324,15.74684505,2545.7,2545.6,0.00588998]
[1724927755623,15.14784505,2545.7,2544.9,4.191]
[1724927755820,0.98191,2545.4,2544.8,6.5978]
[1724927756119,4.88661869,2545.3,2544.8,47.79065]
[1724927756327,0.77941,2545.2,2544.8,47.79065]
[1724927756818,4.18307952,2545.1,2544.8,47.3978]
[1724927757011,4.18307952,2545.1,2544.8,47.79065]
[1724927757218,4.18307952,2545.1,2545.0,3.39]
[1724927757414,0.39278,2545.3,2545.0,3.78282]
[1724927757728,9.40752633,2545.3,2544.8,3.2078]
[1724927758024,0.39284,2544.9,2544.8,3.2078]
[1724927758413,8.42637633,2544.9,2544.8,3.2078]
[1724927758815,4.88337633,2544.9,2544.8,3.2078]
[1724927759021,0.39285,2544.8,2544.7,0.00588998]
[1724927759219,9.20127633,2544.9,2544.7,0.00588998]
[1724927759417,4.50249828,2544.8,2544.7,0.39875998]
[1724927759634,0.3866,2544.9,2544.7,0.39875998]
[1724927759935,0.3866,2544.9,2544.8,0.39285]
[1724927760130,3.21368998,2545.1,2544.9,0.39284]
[1724927760621,4.1505777,2545.0,2544.9,0.39284]
[1724927760823,4.1505777,2545.0,2544.9,3.78284]
[1724927761220,4.1505777,2545.0,2544.9,7.71244]
[1724927761420,0.00588998,2545.1,2545.0,0.39282]
[1724927762326,0.00588998,2545.1,2545.0,4.32162]
[1724927763324,0.00588998,2545.1,2545.0,7.52942]
[1724927763520,0.00588998,2545.1,2545.0,13.90872]
[1724927763828,0.00588998,2545.1,2545.0,7.90872]
[1724927764025,0.00588998,2545.1,2545.0,14.89079]
[1724927764222,3.2078,2545.5,2545.4,0.39276]
[1724927764520,3.2078,2545.5,2545.4,3.78276]
[1724927764917,0.3557,2546.1,2545.7,0.39272]
[1724927765118,0.3781,2546.0,2545.6,3.39]
[1724927765327,4.87606971,2546.0,2545.9,3.78269]
[1724927765625,0.00588998,2546.2,2546.1,0.39265]
[1724927765828,0.00588998,2546.2,2546.1,3.78265]
[1724927766016,0.00588998,2546.2,2546.1,3.39]
[1724927766221,0.00588998,2546.2,2546.0,1.13286]
[1724927766625,0.00588998,2546.2,2545.9,3.39]
[1724927766827,0.00588998,2546.2,2545.7,3.743]
[1724927767017,0.39268,2546.0,2545.7,7.053]
[1724927767218,4.15890275,2546.1,2545.7,7.44571]
[1724927767219,4.55156275,2546.1,2545.7,7.44571]
[1724927767423,4.15890275,2545.9,2545.7,7.44571]